fUSD/lending_fUSD_20260202
["ID","MTS","AMOUNT","RATE_DAILY","PERIOD"]
[404259145,1770011445031,-500.0,0.0001633,2]
[404259146,1770011445044,-209.40437684,0.0001633,2]
[404259147,1770011445053,-500.0,0.0001633,2]
[404259148,1770011445063,-250.0,0.0001633,2]
[404259149,1770011445073,-500.0,0.0001633,2]
[404259150,1770011445082,-250.0,0.0001633,2]
[404259151,1770011445092,-500.0,0.0001633,2]
[404259152,1770011445104,-250.0,0.0001633,2]
[404259153,1770011445113,-500.0,0.0001633,2]
[404259154,1770011445123,-500.0,0.0001633,2]
[404259155,1770011445134,-250.0,0.0001633,2]
[404259156,1770011445144,-500.0,0.0001633,2]
[404259157,1770011445153,-250.0,0.0001633,2]
[404259158,1770011445163,-500.0,0.0001633,2]
[404259159,1770011445173,-250.0,0.0001633,2]
[404259160,1770011445183,-500.0,0.0001633,2]
[404259161,1770011445192,-500.0,0.0001633,2]
[404259162,1770011445202,-250.0,0.0001633,2]
[404259163,1770011445211,-500.0,0.0001633,2]
[404259164,1770011445221,-500.0,0.0001633,2]
[404259165,1770011445231,-250.0,0.0001633,2]
[404259166,1770011445240,-344.38825217,0.0001633,2]
[404259167,1770011445250,-500.0,0.0001633,2]
[404259168,1770011445260,-250.0,0.0001633,2]
[404259169,1770011445270,-500.0,0.0001633,2]
[404259170,1770011445279,-250.0,0.0001633,2]
[404259171,1770011445291,-500.0,0.0001633,2]
[404259172,1770011445304,-250.0,0.0001633,2]
[404259173,1770011445314,-151.0,0.0001633,2]
[404259174,1770011445323,-151.0,0.0001633,2]
[404259175,1770011445333,-250.0,0.0001633,2]
[404259176,1770011445343,-209.40437684,0.0001633,2]
[404259177,1770011445353,-151.0,0.0001633,2]
[404259178,1770011445363,-250.0,0.0001633,2]
[404259179,1770011445373,-250.0,0.0001633,2]
[404259180,1770011445383,-151.0,0.0001633,2]
[404259181,1770011445393,-250.0,0.0001633,2]
[404259182,1770011445402,-250.0,0.0001633,2]
[404259183,1770011445412,-151.0,0.0001633,2]
[404259184,1770011445422,-250.0,0.0001633,2]
[404259185,1770011445432,-250.0,0.0001633,2]
[404259186,1770011445442,-151.0,0.0001633,2]
[404259187,1770011445451,-250.0,0.0001633,2]
[404259188,1770011445460,-250.0,0.0001633,2]
[404259189,1770011445470,-151.0,0.0001633,2]
[404259190,1770011445480,-250.0,0.0001633,2]
[404259191,1770011445490,-250.0,0.0001633,2]
[404259192,1770011445556,-151.0,0.0001633,2]
[404259193,1770011445566,-250.0,0.0001633,2]
[404259194,1770011445575,-250.0,0.0001633,2]
[404259195,1770011445586,-151.0,0.0001633,2]
[404259197,1770011445595,-250.0,0.0001633,2]
[404259198,1770011445605,-250.0,0.0001633,2]
[404259199,1770011445615,-151.0,0.0001633,2]
[404259200,1770011445625,-250.0,0.0001633,2]
[404259201,1770011445635,-250.0,0.0001633,2]
[404259202,1770011445645,-151.0,0.0001633,2]
[404259203,1770011445655,-250.0,0.0001633,2]
[404259204,1770011445664,-250.0,0.0001633,2]
[404259205,1770011445674,-250.0,0.0001633,2]
[404259206,1770011445683,-250.0,0.0001633,2]
[404259207,1770011445693,-209.40437684,0.0001633,2]
[404259208,1770011445703,-250.0,0.0001633,2]
[404259210,1770011445713,-1428.38747117,0.0001633,2]
[404259212,1770011445722,-500.0,0.0001633,2]
[404259214,1770011445732,-500.0,0.0001633,2]
[404259216,1770011445741,-500.0,0.0001633,2]
[404259217,1770011445751,-500.0,0.0001633,2]
[404259218,1770011445760,-500.0,0.0001633,2]
[404259220,1770011445770,-500.0,0.0001633,2]
[404259222,1770011445780,-500.0,0.0001633,2]
[404259223,1770011445789,-500.0,0.0001633,2]
[404259224,1770011445801,-500.0,0.0001633,2]
[404259225,1770011445811,-500.0,0.0001633,2]
[404259226,1770011445820,-500.0,0.0001633,2]
[404259228,1770011445830,-500.0,0.00016354,2]
[404259229,1770011445839,-500.0,0.00016354,2]
[404259230,1770011445849,-500.0,0.00016354,2]
[404259231,1770011445858,-500.0,0.00016354,2]
[404259232,1770011445868,-500.0,0.00016354,2]
[404259233,1770011445878,-500.0,0.00016354,2]
[404259234,1770011445887,-217.15233878,0.00016385,2]
[404259235,1770011445897,-163.0,0.000164,2]
[404259236,1770011445906,-163.0,0.000164,2]
[404259237,1770011445916,-1752.70233085,0.00016438,2]
[404259238,1770011445928,-1752.70233085,0.00016438,2]
[404259239,1770011445938,-1752.70233085,0.00016438,2]
[404259240,1770011445947,-1752.70233085,0.00016438,2]
[404259241,1770011445957,-1752.70233085,0.00016438,2]
[404259242,1770011445967,-1752.70233085,0.00016438,2]
[404259243,1770011445977,-1752.70233085,0.00016438,2]
[404259244,1770011445987,-1752.70233085,0.00016438,2]
[404259245,1770011445998,-1752.70233085,0.00016438,2]
[404259247,1770011446009,-1752.70233085,0.00016438,2]
[404259248,1770011446019,-1752.70233085,0.00016438,2]
[404259249,1770011446029,-1752.70233085,0.00016438,2]
[404259250,1770011446038,-1752.70233085,0.00016438,2]
[404259251,1770011446056,-1752.70233085,0.00016438,2]
[404259252,1770011446066,-1752.70233085,0.00016438,2]
[404259253,1770011446075,-1752.70233085,0.00016438,2]
[404259254,1770011446085,-1752.70233085,0.00016438,2]
[404259255,1770011446094,-1752.70233085,0.00016438,2]
[404259256,1770011446103,-1752.70233085,0.00016438,2]
[404259257,1770011446112,-1752.70233085,0.00016438,2]
[404259258,1770011446121,-1752.70233085,0.00016438,2]
[404259259,1770011446131,-1752.70233085,0.00016438,2]
[404259260,1770011446140,-1752.70233085,0.00016438,2]
[404259261,1770011446149,-1752.70233085,0.00016438,2]
[404259262,1770011446159,-1752.70233085,0.00016438,2]
[404259263,1770011446168,-1752.70233085,0.00016438,2]
[404259264,1770011446178,-1752.70233085,0.00016438,2]
[404259265,1770011446187,-1752.70233085,0.00016438,2]
[404259266,1770011446196,-1752.70233085,0.00016438,2]
[404259267,1770011446206,-1752.70233085,0.00016438,2]
[404259268,1770011446215,-1752.70233085,0.00016438,2]
[404259269,1770011446225,-1752.70233085,0.00016438,2]
[404259270,1770011446235,-1752.70233085,0.00016438,2]
[404259271,1770011446244,-1752.70233085,0.00016438,2]
[404259272,1770011446254,-1752.70233085,0.00016438,2]
[404259273,1770011446263,-1752.70233085,0.00016438,2]
[404259274,1770011446273,-1752.70233085,0.00016438,2]
[404259275,1770011446283,-1752.70233085,0.00016438,2]
[404259276,1770011446296,-1752.70233085,0.00016438,2]
[404259277,1770011446307,-1752.70233085,0.00016438,2]
[404259278,1770011446316,-1752.70233085,0.00016438,2]
[404259279,1770011446325,-1752.70233085,0.00016438,2]
[404259280,1770011446335,-1752.70233085,0.00016438,2]
[404259281,1770011446344,-1752.70233085,0.00016438,2]
[404259282,1770011446354,-1752.70233085,0.00016438,2]
[404259283,1770011446364,-1752.70233085,0.00016438,2]
[404259284,1770011446373,-1752.70233085,0.00016438,2]
[404259285,1770011446383,-1752.70233085,0.00016438,2]
[404259286,1770011446392,-1752.70233085,0.00016438,2]
[404259287,1770011446401,-1752.70233085,0.00016438,2]
[404259288,1770011446410,-1752.70233085,0.00016438,2]
[404259289,1770011446420,-1752.70233085,0.00016438,2]
[404259290,1770011446429,-1752.70233085,0.00016438,2]
[404259291,1770011446439,-1752.70233085,0.00016438,2]
[404259292,1770011446448,-1752.70233085,0.00016438,2]
[404259293,1770011446458,-1752.70233085,0.00016438,2]
[404259294,1770011446467,-1752.70233085,0.00016438,2]
[404259295,1770011446477,-1752.70233085,0.00016438,2]
[404259296,1770011446486,-1725.31635693,0.00016438,2]
[404259297,1770011446496,-1725.31635693,0.00016438,2]
[404259298,1770011446505,-1725.31635693,0.00016438,2]
[404259299,1770011446515,-1725.31635693,0.00016438,2]
[404259300,1770011446524,-1725.31635693,0.00016438,2]
[404259301,1770011446534,-1725.31635693,0.00016438,2]
[404259302,1770011446549,-1725.31635693,0.00016438,2]
[404259303,1770011446559,-1725.31635693,0.00016438,2]
[404259304,1770011446568,-1725.31635693,0.00016438,2]
[404259305,1770011446577,-1725.31635693,0.00016438,2]
[404259307,1770011446587,-1725.31635693,0.00016438,2]
[404259309,1770011446596,-1725.31635693,0.00016438,2]
[404259311,1770011446605,-1725.31635693,0.00016438,2]
[404259313,1770011446614,-1725.31635693,0.00016438,2]
[404259315,1770011446624,-1725.31635693,0.00016438,2]
[404259317,1770011446634,-1725.31635693,0.00016438,2]
[404259319,1770011446643,-1725.31635693,0.00016438,2]
[404259321,1770011446652,-1725.31635693,0.00016438,2]
[404259323,1770011446661,-1725.31635693,0.00016438,2]
[404259325,1770011446671,-1725.31635693,0.00016438,2]
[404259326,1770011446681,-1725.31635693,0.00016438,2]
[404259327,1770011446691,-1725.31635693,0.00016438,2]
[404259328,1770011446700,-1725.31635693,0.00016438,2]
[404259329,1770011446710,-1725.31635693,0.00016438,2]
[404259330,1770011446719,-1725.31635693,0.00016438,2]
[404259332,1770011446731,-1725.31635693,0.00016438,2]
[404259334,1770011446741,-1725.31635693,0.00016438,2]
[404259336,1770011446751,-1725.31635693,0.00016438,2]
[404259337,1770011446762,-1725.31635693,0.00016438,2]
[404259338,1770011446771,-1725.31635693,0.00016438,2]
[404259339,1770011446781,-1725.31635693,0.00016438,2]
[404259340,1770011446797,-1725.31635693,0.00016438,2]
[404259341,1770011446810,-2044.81938589,0.00016438,2]
[404259343,1770011446819,-500.0,0.00016438,2]
[404259345,1770011446829,-250.55733734,0.00016438,2]
[404259347,1770011446839,-800.78453244,0.00016438,2]
[404259349,1770011446848,-225.18697532,0.0001644,2]
[404259351,1770011446857,-242.74099675,0.00016446,2]
[404259353,1770011446866,-189.59,0.00016458,2]
[404259355,1770011446875,-500.0,0.00016493,2]
[404259357,1770011446883,-233.51889341,0.00016495,2]
[404259358,1770011446893,-160.02702936,0.00016505,2]
[404259361,1770011446902,-342.12,0.00016515,2]
[404259363,1770011446911,-226.84054848,0.00016528,2]
[404259364,1770011446920,-500.0,0.00016548,2]
[404259367,1770011446933,-242.15909246,0.0001655,2]
[404259369,1770011446943,-1500.0,0.00016568,2]
[404259371,1770011446952,-1004.26216588,0.00016568,2]
[404259373,1770011446962,-1500.0,0.00016568,2]
[404259375,1770011446971,-665.40489721,0.00016568,2]
[404259377,1770011446980,-1500.0,0.00016568,2]
[404259379,1770011446989,-1500.0,0.00016568,2]
[404259381,1770011447000,-1500.0,0.00016568,2]
[404259383,1770011447009,-1500.0,0.00016568,2]
[404259385,1770011447019,-1500.0,0.00016568,2]
[404259387,1770011447028,-505.45817911,0.00016568,2]
[404259389,1770011447037,-622.87168328,0.00016568,2]
[404259391,1770011447051,-1500.0,0.00016568,2]
[404259393,1770011447060,-504.30163313,0.00016568,2]
[404259395,1770011447069,-1005.54193795,0.00016568,2]
[404259397,1770011447079,-505.38162593,0.00016568,2]
[404259399,1770011447088,-240.83933027,0.00016568,2]
[404259401,1770011447097,-1005.24936027,0.00016568,2]
[404259403,1770011447107,-1500.0,0.00016568,2]
[404259405,1770011447116,-1500.0,0.00016568,2]
[404259408,1770011447125,-1500.0,0.00016568,2]
[404259410,1770011447135,-343.08326797,0.00016568,2]
[404259412,1770011447144,-1500.0,0.00016568,2]
[404259414,1770011447153,-545.1454494,0.00016568,2]
[404259416,1770011447162,-1500.0,0.00016568,2]
[404259418,1770011447171,-1500.0,0.00016568,2]
[404259420,1770011447180,-504.6853335,0.00016568,2]
[404259422,1770011447189,-1500.0,0.00016568,2]
[404259424,1770011447199,-776.88278142,0.00016568,2]
[404259426,1770011447208,-500.0,0.00016602,2]
[404259428,1770011447217,-251.11897888,0.00016605,2]
[404259430,1770011447225,-3292.0,0.00016632,2]
[404259432,1770011447235,-10091.57601831,0.00016652,2]
[404259434,1770011447244,-500.0,0.00016657,2]
[404259436,1770011447253,-260.4103811,0.0001666,2]
[404259438,1770011447263,-500.0,0.00016712,2]
[404259440,1770011447272,-270.0455652,0.00016715,2]
[404259442,1770011447282,-2835.0,0.0001672,2]
[404259444,1770011447291,-320.0,0.0001672,2]
[404259446,1770011447305,-500.0,0.00016767,2]
[404259448,1770011447314,-280.03725112,0.0001677,2]
[404259450,1770011447323,-157.83,0.00016784,2]
[404259453,1770011447334,-291.3,0.0001682,2]
[404259455,1770011447343,-500.0,0.00016822,2]
[404259457,1770011447352,-290.39862941,0.00016825,2]
[404259459,1770011447360,-161.94,0.00016832,2]
[404259461,1770011447369,-502.83428693,0.00016855,2]
[404259463,1770011447378,-500.0,0.00016855,2]
[404259465,1770011447387,-500.0,0.00016855,2]
[404259467,1770011447396,-500.0,0.00016855,2]
[404259469,1770011447405,-500.0,0.00016855,2]
[404259471,1770011447414,-500.0,0.00016855,2]
[404259473,1770011447423,-189.59,0.00016869,2]
[404259475,1770011447432,-500.0,0.00016876,2]
[404259477,1770011447441,-181.08010149,0.00016878,2]
[404259479,1770011447449,-891.61887448,0.00016878,2]
[404259481,1770011447459,-217.15233878,0.00016878,2]
[404259483,1770011447468,-217.15233878,0.00016878,2]
[404259485,1770011447477,-1481.23780761,0.00016878,2]
[404259487,1770011447486,-301.1433787,0.0001688,2]
[404259489,1770011447496,-868.9,0.00016884,2]
[404259491,1770011447505,-173.4,0.00016902,2]
[404259493,1770011447513,-500.0,0.00016906,2]
[404259495,1770011447523,-500.0,0.00016931,2]
[404259497,1770011447531,-305.66548204,0.00016967,2]
[404259499,1770011447540,-1197.99,0.00016971,2]
[404259501,1770011447554,-500.0,0.00016986,2]
[404259503,1770011447563,-779.65372,0.00017,2]
[404259505,1770011447573,-1625.0,0.0001704,2]
[404259507,1770011447583,-500.0,0.00017041,2]
[404259509,1770011447591,-500.0,0.00017096,2]
[404259512,1770011447601,-342.12,0.00017112,2]
[404259514,1770011447610,-1008.230722,0.00017116,2]
[404259516,1770011447619,-2128.18837233,0.00017116,2]
[404259518,1770011447628,-2000.0,0.00017116,2]
[404259520,1770011447637,-2000.0,0.00017116,2]
[404259522,1770011447647,-315.28060531,0.00017116,2]
[404259524,1770011447657,-1143.18674336,0.00017116,2]
[404259526,1770011447666,-2000.0,0.00017116,2]
[404259528,1770011447675,-1474.64879752,0.00017116,2]
[404259530,1770011447684,-2000.0,0.00017116,2]
[404259532,1770011447692,-1006.20015718,0.00017116,2]
[404259534,1770011447702,-1756.98671009,0.00017116,2]
[404259536,1770011447712,-1988.36339388,0.00017116,2]
[404259538,1770011447721,-1189.68040771,0.00017116,2]
[404259540,1770011447731,-2000.0,0.00017116,2]
[404259542,1770011447740,-2000.0,0.00017116,2]
[404259545,1770011447750,-265.40654436,0.00017149,2]
[404259547,1770011447759,-500.0,0.0001715,2]
[404259549,1770011447769,-989.28,0.00017158,2]
[404259551,1770011447779,-180.29,0.00017178,2]
[404259553,1770011447789,-150.57,0.00017178,2]
[404259555,1770011447802,-180.29,0.00017178,2]
[404259557,1770011447811,-180.29,0.00017178,2]
[404259559,1770011447821,-160.02702936,0.00017193,2]
[404259562,1770011447831,-500.0,0.00017205,2]
[404259564,1770011447840,-150.00056591,0.00017218,2]
[404259566,1770011447850,-152.0,0.00017238,3]
[404259568,1770011447859,-773.23,0.00017246,2]
[404259570,1770011447868,-1899.6725397,0.0001726,2]
[404259572,1770011447878,-500.0,0.0001726,2]
[404259574,1770011447887,-1000.0,0.0001726,2]
[404259576,1770011447896,-265.40654435,0.00017274,2]
[404259578,1770011447906,-189.59,0.00017281,2]
[404259580,1770011447915,-500.0,0.00017315,2]
[404259582,1770011447926,-500.0,0.0001737,2]
[404259584,1770011447935,-265.40654435,0.00017399,2]
[404259586,1770011447944,-1500.0,0.000174,2]
[404259588,1770011447953,-503.86937896,0.00017424,2]
[404259590,1770011447964,-187.78006525,0.00017426,2]
[404259592,1770011447973,-924.60877284,0.00017426,2]
[404259594,1770011447983,-225.18697532,0.00017426,2]
[404259596,1770011447992,-225.18697532,0.00017426,2]
[404259598,1770011448004,-1536.04360649,0.00017426,2]
[404259600,1770011448013,-773.47,0.0001752,2]
[404259602,1770011448022,-265.40654435,0.00017525,2]
[404259604,1770011448031,-1000.0,0.00017534,2]
[404259606,1770011448040,-1000.0,0.00017556,2]
[404259609,1770011448054,-1000.0,0.00017556,2]
[404259611,1770011448063,-1000.0,0.00017556,2]
[404259613,1770011448072,-1000.0,0.00017556,2]
[404259615,1770011448082,-1000.0,0.00017556,2]
[404259617,1770011448092,-883.519,0.00017556,2]
[404259619,1770011448102,-175.0,0.00017589,2]
[404259622,1770011448112,-2844.0,0.000176,2]
[404259625,1770011448122,-3012.2001319,0.0001764,2]
[404259628,1770011448131,-265.40654435,0.0001765,2]
[404259631,1770011448141,-1002.53462592,0.00017664,2]
[404259634,1770011448151,-947.23523297,0.00017664,2]
[404259637,1770011448160,-502.76473862,0.00017664,2]
[404259639,1770011448170,-1002.03881526,0.00017664,2]
[404259641,1770011448179,-1216.63993214,0.00017664,2]
[404259643,1770011448189,-1504.86417643,0.00017664,2]
[404259645,1770011448198,-5697.0,0.00017668,2]
[404259647,1770011448207,-163.0,0.0001768,2]
[404259649,1770011448217,-334.5472959,0.00017699,2]
[404259651,1770011448227,-342.12,0.00017709,2]
[404259653,1770011448236,-25000.0,0.00017724,3]
[404259655,1770011448245,-25000.0,0.00017733,3]
[404259657,1770011448255,-154.2363007,0.0001774,2]
[404259659,1770011448264,-25000.0,0.00017742,3]
[404259661,1770011448274,-25000.0,0.0001775,3]
[404259663,1770011448284,-217.08812204,0.00017758,2]
[404259665,1770011448295,-25000.0,0.00017759,3]
[404259668,1770011448304,-25000.0,0.00017768,3]
[404259669,1770011448313,-265.40654435,0.00017775,2]
[404259672,1770011448323,-509.63945804,0.00017776,2]
[404259674,1770011448333,-500.0,0.00017776,2]
[404259676,1770011448342,-193.34712914,0.00017776,2]
[404259678,1770011448351,-512.55184272,0.00017776,2]
[404259680,1770011448360,-504.58121564,0.00017776,2]
[404259682,1770011448369,-25000.0,0.00017777,3]
[404259684,1770011448379,-1197.99,0.00017779,2]
[404259686,1770011448388,-25000.0,0.00017786,3]
[404259688,1770011448398,-162.264,0.00017788,2]
[404259690,1770011448407,-1410.0,0.00017788,2]
[404259692,1770011448416,-3481.0,0.00017788,2]
[404259694,1770011448426,-728.464,0.00017788,2]
[404259696,1770011448435,-1338.357,0.00017788,2]
[404259698,1770011448444,-1278.693,0.00017788,2]
[404259700,1770011448454,-161.033,0.00017788,2]
[404259701,1770011448464,-925.751,0.00017788,2]
[404259702,1770011448473,-1205.0,0.00017788,2]
[404259703,1770011448483,-6579.0,0.00017788,2]
[404259704,1770011448491,-3253.0,0.00017788,2]
[404259705,1770011448500,-2445.0,0.00017788,2]
[404259706,1770011448510,-25000.0,0.00017794,3]
[404259708,1770011448519,-3392.25741814,0.000178,2]
[404259710,1770011448528,-25000.0,0.00017803,3]
[404259712,1770011448538,-500.0,0.00017808,2]
[404259714,1770011448551,-1000.0,0.00017808,2]
[404259716,1770011448560,-25000.0,0.00017812,3]
[404259718,1770011448570,-4641.0,0.00017815,2]
[404259720,1770011448579,-2000.0,0.0001782,2]
[404259722,1770011448588,-2000.0,0.0001782,2]
[404259724,1770011448598,-154.23630069,0.0001782,2]
[404259726,1770011448607,-25000.0,0.00017821,3]
[404259728,1770011448616,-25000.0,0.0001783,3]
[404259730,1770011448626,-1522.26710959,0.00017835,2]
[404259732,1770011448635,-2059.6752,0.00017835,2]
[404259734,1770011448645,-500.0,0.00017836,2]
[404259736,1770011448654,-365.11189625,0.00017838,2]
[404259738,1770011448663,-25000.0,0.00017838,3]
[404259740,1770011448673,-25000.0,0.00017847,3]
[404259742,1770011448682,-200.0,0.00017855,2]
[404259744,1770011448691,-25000.0,0.00017856,3]
[404259746,1770011448701,-200.0,0.00017856,2]
[404259748,1770011448710,-200.0,0.00017856,2]
[404259750,1770011448720,-500.0,0.00017863,2]
[404259752,1770011448730,-25000.0,0.00017865,3]
[404259754,1770011448739,-25000.0,0.00017874,3]
[404259756,1770011448748,-160.02702936,0.0001788,2]
[404259759,1770011448758,-25000.0,0.00017882,3]
[404259761,1770011448767,-25000.0,0.00017891,3]
[404259763,1770011448776,-4641.0,0.00017893,2]
[404259765,1770011448786,-164.75,0.000179,3]
[404259767,1770011448797,-25000.0,0.000179,3]
[404259769,1770011448807,-226.84054848,0.000179,2]
[404259771,1770011448817,-265.40654435,0.000179,2]
[404259773,1770011448827,-15197.97288158,0.000179,2]
[404259775,1770011448836,-154.23630069,0.000179,2]
[404259776,1770011448845,-1777.28427788,0.000179,3]
[404259777,1770011448854,-1270.91426363,0.000179,2]
[404259779,1770011448864,-3637.09635562,0.000179,2]
[404259780,1770011448874,-164.27176518,0.000179,2]
[404259781,1770011448883,-14088.0,0.000179,2]
[404259782,1770011448892,-500.0,0.00017918,2]
[404259783,1770011448901,-506.1208044,0.00017972,2]
[404259784,1770011448910,-150.0,0.00017973,2]
[404259785,1770011448920,-194.72792766,0.00017974,2]
[404259786,1770011448934,-277.94807481,0.00017974,2]
[404259787,1770011448944,-233.51889341,0.00017974,2]
[404259788,1770011448954,-233.51889341,0.00017974,2]
[404259789,1770011448963,-1592.87721993,0.00017974,2]
[404259790,1770011448974,-207.0,0.00017975,2]
[404259791,1770011448984,-157.83,0.00017982,2]
[404259792,1770011448994,-1872.11781497,0.00017996,2]
[404259793,1770011449003,-89677.3959108,0.00017997,2]
[404259794,1770011449013,-248.17115062,0.00017999,2]
[404259795,1770011449022,-300.0,0.00017999,2]
[404259796,1770011449031,-300.0,0.00017999,2]
[404259797,1770011449041,-670.83228666,0.00017999,2]
[404259798,1770011449051,-300.0,0.00017999,2]
[404259799,1770011449061,-300.0,0.00017999,2]
[404259800,1770011449071,-666.0,0.00017999,2]
[404259801,1770011449080,-300.0,0.00017999,2]
[404259802,1770011449090,-2906993.73415724,0.00018,2]
[404259803,1770011449100,-470034.66461777,0.00018,2]
[404259804,1770011449109,-7500.35840853,0.00018,2]
[404259805,1770011449118,-2373971.53485977,0.00018,2]
[404259806,1770011449889,-231.98465244,0.00012302,2]
[404259807,1770011449899,-291.0,0.00012893,2]
[404259808,1770011449908,-1447.69125432,0.00012918,2]
[404259809,1770011449930,-103.30874568,0.00012918,2]
[404259810,1770011449939,-16369.07819831,0.000179,2]
[404259811,1770011449948,-713777.89790389,0.00018,2]
[404259812,1770011449958,-813.94526043,0.00018,2]
[404259813,1770011449967,-619783.90666537,0.00018,2]
[404259814,1770011449975,-350927.27008401,0.00018,2]
[404259815,1770011449987,-165981.1452396,0.00018,2]
[404259816,1770011449998,-150.0,0.00018,2]
[404259817,1770011450007,-2348.91140711,0.00018,2]
[404259818,1770011450016,-150.0,0.00018,2]
[404259819,1770011450025,-456.03157399,0.00018,2]
[404259820,1770011450034,-1000.0,0.00018,2]
[404259821,1770011450045,-1000.0,0.00018,2]
[404259822,1770011450054,-1000.0,0.00018,2]
[404259823,1770011450063,-1000.0,0.00018,2]
[404259824,1770011450072,-1000.0,0.00018,2]
[404259825,1770011450081,-1000.0,0.00018,2]
[404259826,1770011450090,-1000.0,0.00018,2]
[404259827,1770011450099,-1000.0,0.00018,2]
[404259828,1770011450108,-1000.0,0.00018,2]
[404259829,1770011450117,-1000.0,0.00018,2]
[404259830,1770011450131,-1000.0,0.00018,2]
[404259831,1770011450140,-1000.0,0.00018,2]
[404259832,1770011450149,-1000.0,0.00018,2]
[404259833,1770011450158,-1000.0,0.00018,2]
[404259834,1770011450167,-1000.0,0.00018,2]
[404259835,1770011450176,-1000.0,0.00018,2]
[404259836,1770011450185,-1000.0,0.00018,2]
[404259837,1770011450193,-1000.0,0.00018,2]
[404259838,1770011450202,-1000.0,0.00018,2]
[404259839,1770011450211,-1000.0,0.00018,2]
[404259840,1770011450221,-1000.0,0.00018,2]
[404259841,1770011450230,-889.22320263,0.00018,2]
[404259842,1770011450740,-330.0,0.00017788,2]
[404259843,1770011450751,-238.0,0.00017788,2]
[404259844,1770011450760,-110.77679737,0.00018,2]
[404259845,1770011450769,-1000.0,0.00018,2]
[404259846,1770011450778,-1000.0,0.00018,2]
[404259847,1770011450787,-1000.0,0.00018,2]
[404259848,1770011450801,-141.04007611,0.00018,2]
[404259849,1770011450816,-858.95992389,0.00018,2]
[404259850,1770011450825,-1000.0,0.00018,2]
[404259851,1770011450835,-1000.0,0.00018,2]
[404259852,1770011450844,-1037.70585105,0.00018,2]
[404259853,1770011450853,-641.99731881,0.00018,2]
[404259854,1770011450862,-162.39977496,0.00018,2]
[404259855,1770011450871,-64320.0078731,0.00018,2]
[404259856,1770011450918,-1988.0,0.00012944,2]
[404259857,1770011450930,-27850.1470073,0.00018,2]
[404259858,1770011450941,-306.20374585,0.00018,2]
[404259891,1770011568259,-500.0,0.00012412,2]
[404259892,1770011573020,-500.0,0.00012411,2]
[404259893,1770011575065,-500.0,0.00012411,2]
[404259894,1770011576891,-500.0,0.00012411,2]
[404260023,1770011834520,1055.96,0.00011701,2]
[404260035,1770011946470,175.25,9.801e-05,2]
[404260036,1770011953537,4414.21453616,0.00011233,2]
[404260037,1770011953561,1209.75546384,0.00011233,2]
[404260038,1770011984418,166.66,0.00012052,2]
[404260046,1770012051921,4874.02680424,0.00012212,2]
[404260047,1770012051949,6250.44226808,0.00012212,2]
[404260048,1770012051981,6250.44226808,0.00012212,2]
[404260049,1770012052008,6250.44226808,0.00012212,2]
[404260050,1770012052035,6250.44226808,0.00012212,2]
[404260051,1770012052066,6250.44226808,0.00012212,2]
[404260052,1770012052093,6250.44226808,0.00012212,2]
[404260053,1770012052121,6250.44226808,0.00012212,2]
[404260064,1770012109397,-168.668,0.00011968,2]
[404260065,1770012109428,-1165.95,0.00011968,2]
[404260066,1770012109458,-164.27176519,0.00012151,2]
[404260067,1770012109488,-300.0,0.00012211,2]
[404260073,1770012165198,6402.23046962,0.00012151,2]
[404260074,1770012165227,10000.01,0.00012151,2]
[404260075,1770012165254,487.6181035,0.00012151,2]
[404260076,1770012180079,545.792757,0.00012151,2]
[404260077,1770012182742,150.0,0.00012211,2]
[404260078,1770012183280,300.0,0.00012211,2]
[404260085,1770012188191,500.0,0.00012111,2]
[404260086,1770012188319,545.119277,7.945e-05,2]
[404260087,1770012194797,214.09798837,0.00012151,2]